[Event "121st Swiss Championship 2022"]
[Site "Samnaun-Compatsch"]
[Date "2022.07.09"]
[Round "8.8"]
[White "Wyss, Jonas"]
[Black "Labelle, Ambroise"]
[Result "0-1"]
[ECO "C11"]
[WhiteElo "2223"]
[BlackElo "2045"]
[Annotator "RC"]
[PlyCount "86"]
[EventDate "2022.06.28"]
[EventType "swiss"]
[EventCountry "SUI"]
[SourceTitle "playchess.com"]
[Source "ChessBase"]
[SourceQuality "1"]
[TimeControl "40/5400+30:1800+30"]

1. e4 {[%emt 0:00:02]} e6 {[%emt 0:00:47]} 2. d4 {[%emt 0:00:08]} d5 {[%emt 0:00:06]} 3. Nc3 {[%emt 0:00:05]} Nf6 {[%emt 0:00:11]} 4. e5 {[%emt 0:00:07]} Nfd7 {[%emt 0:00:06]} 5. f4 {[%emt 0:00:06]} c5 {[%emt 0:00:12]} 6. Nf3 {[%emt 0:00:07]} Nc6 {[%emt 0:00:11]} 7. Be3 {[%emt 0:00:12]} Be7 {[%emt 0:00:57]} 8. Qd2 {[%emt 0:00:08]} O-O {[%emt 0:00:10]} 9. dxc5 {[%emt 0:00:28]} Qa5 {[%emt 0:00:20]} 10. O-O-O {[%emt 0:00:17]} b6 {[%emt 0:00:36]} 11. Bb5 {[%emt 0:00:07]} Nb4 {[%emt 0:00:12]} 12. Kb1 {[%emt 0:15:20]} bxc5 {[%emt 0:01:10]} 13. a3 {[%emt 0:03:18]} Rb8 {[%emt 0:01:19]} 14. axb4 {[%emt 0:05:22]} cxb4 {[%emt 0:03:07]} 15. Nxd5 {[%emt 0:03:12]} exd5 {[%emt 0:00:23]} 16. Bxd7 {[%emt 0:09:47]} Bxd7 {[%emt 0:00:14]} 17. Qxd5 {[%emt 0:00:19]} Qxd5 {[%emt 0:00:09]} 18. Rxd5 {[%emt 0:00:07]} Bc6 {[%emt 0:00:21]} 19. Ra5 {[%emt 0:15:22]} Rfc8 {[%emt 0:00:49]} 20. b3 {[%emt 0:16:55]} Be4 {[%emt 0:02:07]} 21. Rc1 {[%emt 0:02:34]} Rc3 {[%emt 0:05:43]} 22. Bd4 {[%emt 0:00:46]} Rxb3+ {[%emt 0:00:23]} 23. Ka2 {[%emt 0:02:07]} Ra3+ {[%emt 0:02:33]} 24. Rxa3 {[%emt 0:00:05]} bxa3 {[%emt 0:00:08]} 25. c4 {[%emt 0:05:29]} Kf8 {[%emt 0:04:38]} 26. c5 {[%emt 0:06:07]} Ke8 {[%emt 0:01:48]} 27. c6 {[%emt 0:08:58]} Rc8 {[%emt 0:17:34]} 28. c7 {[%emt 0:01:15]} Kd7 {[%emt 0:02:29]} 29. e6+ {[%emt 0:00:34]} fxe6 {[%emt 0:07:00]} 30. Ne5+ {[%emt 0:00:11]} Ke8 {[%emt 0:00:05]} 31. Bxa7 {[%emt 0:01:46]} Bxg2 {[%emt 0:00:56]} 32. Bb8 {[%emt 0:01:02]} Bd6 {[%emt 0:01:28]} 33. Ka1 {[%emt 0:03:04]} Bd5 {[%emt 0:25:03]} 34. h4 {[%emt 0:00:04]} g6 {[%emt 0:02:57]} 35. Rc3 {[%emt 0:01:14]} Be7 {[%emt 0:03:38]} 36. h5 {[%emt 0:01:06]} gxh5 {[%emt 0:01:19]} 37. Rg3 {[%emt 0:00:24]} h4 {[%emt 0:02:28]} 38. Rg8+ {[%emt 0:00:32]} Bf8 {[%emt 0:00:04]} 39. Rxf8+ {[%emt 0:00:36]} Kxf8 {[%emt 0:00:07]} 40. Nd7+ {[%emt 0:00:06]} Kg7 {[%emt 0:01:38]} 41. Nb6 {[%emt 0:02:42]} h3 {[%emt 0:02:06]} 42. Nxc8 {[%emt 0:00:18]} h2 {[%emt 0:00:01]} 43. Nd6 {[%emt 0:00:10]} h1=Q# {[%emt 0:00:06]} 0-1

[Event "121st Swiss Championship 2022"]
[Site "Samnaun-Compatsch"]
[Date "2022.07.09"]
[Round "8.9"]
[White "Angst, Oliver"]
[Black "Collin, Moritz Valentin"]
[Result "1-0"]
[ECO "A01"]
[WhiteElo "2203"]
[BlackElo "2129"]
[Annotator "RC"]
[PlyCount "83"]
[EventDate "2022.06.28"]
[EventType "swiss"]
[EventCountry "SUI"]
[SourceTitle "playchess.com"]
[Source "ChessBase"]
[SourceQuality "1"]
[TimeControl "40/5400+30:1800+30"]

1. b3 {[%emt 0:02:32]} e5 {[%emt 0:00:11]} 2. Bb2 {[%emt 0:01:56]} Nc6 {[%emt 0:00:07]} 3. e3 {[%emt 0:00:24]} d5 {[%emt 0:00:07]} 4. Bb5 {[%emt 0:04:17]} Bd6 {[%emt 0:00:07]} 5. f4 {[%emt 0:01:46]} f6 {[%emt 0:02:38]} 6. Nf3 {[%emt 0:10:50]} Nh6 {[%emt 0:22:37]} 7. fxe5 {[%emt 0:05:19]} fxe5 {[%emt 0:00:11]} 8. O-O {[%emt 0:01:00]} O-O {[%emt 0:24:33]} 9. Bxc6 {[%emt 0:08:37]} bxc6 {[%emt 0:00:09]} 10. Nxe5 {[%emt 0:02:05]} Rxf1+ {[%emt 0:07:16]} 11. Qxf1 {[%emt 0:01:46]} Bf5 {[%emt 0:00:25]} 12. Nf3 {[%emt 0:12:41]} Bxc2 {[%emt 0:05:51]} 13. d3 {[%emt 0:01:53]} Bxb1 {[%emt 0:02:30]} 14. Rxb1 {[%emt 0:00:40]} Qe7 {[%emt 0:04:23]} 15. Re1 {[%emt 0:05:40]} Bc5 {[%emt 0:02:47]} 16. Bd4 {[%emt 0:01:58]} Nf5 {[%emt 0:05:04]} 17. Bxc5 {[%emt 0:07:24]} Qxc5 {[%emt 0:00:06]} 18. Qf2 {[%emt 0:00:53]} Rf8 {[%emt 0:04:19]} 19. e4 {[%emt 0:00:35]} Qxf2+ {[%emt 0:00:20]} 20. Kxf2 {[%emt 0:01:23]} Nd4 {[%emt 0:02:42]} 21. Rc1 {[%emt 0:03:36]} dxe4 {[%emt 0:06:48]} 22. dxe4 {[%emt 0:00:16]} Rf6 {[%emt 0:00:33]} 23. Ke3 {[%emt 0:04:09]} Nxf3 {[%emt 0:00:08]} 24. gxf3 {[%emt 0:00:04]} Kf7 {[%emt 0:01:38]} 25. f4 {[%emt 0:01:11]} Rh6 {[%emt 0:01:48]} 26. Rc2 {[%emt 0:00:31]} Ke7 {[%emt 0:00:32]} 27. e5 {[%emt 0:02:11]} Kd7 {[%emt 0:00:50]} 28. Ke4 {[%emt 0:03:38]} g6 {[%emt 0:01:11]} 29. Kf3 {[%emt 0:03:12]} Rh3+ {[%emt 0:03:28]} 30. Kg4 {[%emt 0:00:04]} Rd3 {[%emt 0:00:38]} 31. h4 {[%emt 0:05:14]} Rd5 {[%emt 0:00:28]} 32. h5 {[%emt 0:02:33]} gxh5+ {[%emt 0:01:04]} 33. Kf5 {[%emt 0:00:04]} a6 {[%emt 0:00:57]} 34. Rh2 {[%emt 0:00:13]} Ke8 {[%emt 0:00:18]} 35. Rxh5 {[%emt 0:00:16]} Rd7 {[%emt 0:00:06]} 36. Rh6 {[%emt 0:00:49]} a5 {[%emt 0:00:38]} 37. Rxc6 {[%emt 0:00:48]} Rd2 {[%emt 0:00:05]} 38. Rxc7 {[%emt 0:00:40]} Rxa2 {[%emt 0:00:05]} 39. Ke6 {[%emt 0:00:22]} Kd8 {[%emt 0:00:24]} 40. Rxh7 {[%emt 0:00:33]} Rb2 {[%emt 0:00:18]} 41. Rd7+ {[%emt 0:30:40]} Ke8 {[%emt 0:30:47]} 42. Ra7 {[%emt 0:00:28]} 1-0

[Event "121st Swiss Championship 2022"]
[Site "Samnaun-Compatsch"]
[Date "2022.07.09"]
[Round "8.10"]
[White "Grob, Joshua"]
[Black "Lou, Vincent"]
[Result "0-1"]
[ECO "B50"]
[WhiteElo "2040"]
[BlackElo "2200"]
[Annotator "RC"]
[PlyCount "102"]
[EventDate "2022.06.28"]
[EventType "swiss"]
[EventCountry "SUI"]
[SourceTitle "playchess.com"]
[Source "ChessBase"]
[SourceQuality "1"]
[TimeControl "40/5400+30:1800+30"]

1. e4 {[%emt 0:00:04]} c5 {[%emt 0:02:12]} 2. Nf3 {[%emt 0:00:15]} d6 {[%emt 0:00:05]} 3. c3 {[%emt 0:00:04]} Nf6 {[%emt 0:01:01]} 4. h3 {[%emt 0:00:05]} e6 {[%emt 0:00:32]} 5. Bd3 {[%emt 0:00:43]} Be7 {[%emt 0:00:18]} 6. O-O {[%emt 0:00:18]} O-O {[%emt 0:00:07]} 7. Bc2 {[%emt 0:00:07]} b5 {[%emt 0:03:06]} 8. d4 {[%emt 0:02:11]} Bb7 {[%emt 0:04:27]} 9. Re1 {[%emt 0:06:32]} a6 {[%emt 0:01:34]} 10. Bg5 {[%emt 0:01:08]} Nbd7 {[%emt 0:01:08]} 11. Nbd2 {[%emt 0:03:32]} cxd4 {[%emt 0:00:49]} 12. cxd4 {[%emt 0:00:12]} Rc8 {[%emt 0:03:48]} 13. a3 {[%emt 0:08:14]} Nb6 {[%emt 0:03:21]} 14. e5 {[%emt 0:13:36]} dxe5 {[%emt 0:00:41]} 15. dxe5 {[%emt 0:00:04]} Nfd7 {[%emt 0:01:05]} 16. Bxe7 {[%emt 0:01:53]} Qxe7 {[%emt 0:00:12]} 17. Be4 {[%emt 0:03:51]} Nc5 {[%emt 0:03:33]} 18. Rc1 {[%emt 0:03:31]} Rfd8 {[%emt 0:03:04]} 19. Qe2 {[%emt 0:00:21]} Nd5 {[%emt 0:08:37]} 20. g3 {[%emt 0:10:07]} Na4 {[%emt 0:10:45]} 21. Nb1 {[%emt 0:09:36]} Rc7 {[%emt 0:03:31]} 22. Rc2 {[%emt 0:03:00]} Rdc8 {[%emt 0:04:56]} 23. Rec1 {[%emt 0:00:44]} Nc5 {[%emt 0:01:13]} 24. Nbd2 {[%emt 0:01:18]} h6 {[%emt 0:04:04]} 25. Nd4 {[%emt 0:06:08]} Qd8 {[%emt 0:05:07]} 26. N4b3 {[%emt 0:03:10]} Na4 {[%emt 0:06:27]} 27. Nf3 {[%emt 0:03:49]} Rxc2 {[%emt 0:05:43]} 28. Rxc2 {[%emt 0:00:18]} Ndc3 {[%emt 0:09:33]} 29. bxc3 {[%emt 0:00:20]} Nxc3 {[%emt 0:00:05]} 30. Rxc3 {[%emt 0:01:20]} Rxc3 {[%emt 0:00:02]} 31. Bxb7 {[%emt 0:00:07]} Rxb3 {[%emt 0:00:09]} 32. Qa2 {[%emt 0:14:35]} Qd3 {[%emt 0:05:49]} 33. Be4 {[%emt 0:04:12]} Qc3 {[%emt 0:01:02]} 34. Qd2 {[%emt 0:00:39]} Qxd2 {[%emt 0:00:35]} 35. Nxd2 {[%emt 0:00:02]} Rxa3 {[%emt 0:00:05]} 36. Kf1 {[%emt 0:00:22]} a5 {[%emt 0:00:44]} 37. Ke2 {[%emt 0:00:44]} b4 {[%emt 0:00:47]} 38. Kd1 {[%emt 0:00:16]} a4 {[%emt 0:01:36]} 39. Kc1 {[%emt 0:01:39]} Kf8 {[%emt 0:02:47]} 40. Kb2 {[%emt 0:00:48]} Rc3 {[%emt 0:02:26]} 41. Nb1 {[%emt 0:08:25]} Rc5 {[%emt 0:00:37]} 42. f4 {[%emt 0:00:14]} Ke7 {[%emt 0:01:34]} 43. h4 {[%emt 0:08:14]} Kd7 {[%emt 0:01:23]} 44. h5 {[%emt 0:00:12]} Kc7 {[%emt 0:00:21]} 45. Bf3 {[%emt 0:04:28]} Kb6 {[%emt 0:01:24]} 46. Bd1 {[%emt 0:03:05]} Ka5 {[%emt 0:02:38]} 47. Nd2 {[%emt 0:01:20]} Rc7 {[%emt 0:05:48]} 48. Ne4 {[%emt 0:02:46]} b3 {[%emt 0:01:52]} 49. Nd2 {[%emt 0:03:21]} Kb4 {[%emt 0:00:32]} 50. Nb1 {[%emt 0:00:09]} Ra7 {[%emt 0:00:48]} 51. Na3 {[%emt 0:00:12]} Rd7 {[%emt 0:00:10]} 0-1

[Event "121st Swiss Championship 2022"]
[Site "Samnaun-Compatsch"]
[Date "2022.07.09"]
[Round "8.11"]
[White "Balzer, Lars"]
[Black "Sedina, Yelena"]
[Result "0-1"]
[ECO "C00"]
[WhiteElo "2012"]
[BlackElo "2215"]
[Annotator "RC"]
[PlyCount "40"]
[EventDate "2022.06.28"]
[EventType "swiss"]
[EventCountry "SUI"]
[SourceTitle "playchess.com"]
[Source "ChessBase"]
[SourceQuality "1"]
[TimeControl "40/5400+30:1800+30"]

1. e4 {[%emt 0:00:02]} e6 {[%emt 0:02:16]} 2. d3 {[%emt 0:00:27]} d5 {[%emt 0:01:13]} 3. Nd2 {[%emt 0:00:09]} Nf6 {[%emt 0:01:29]} 4. Ngf3 {[%emt 0:01:16]} Nc6 {[%emt 0:05:22]} 5. e5 {[%emt 0:05:57]} Nd7 {[%emt 0:00:40]} 6. d4 {[%emt 0:02:44]} f6 {[%emt 0:03:38]} 7. Bd3 {[%emt 0:11:36]} fxe5 {[%emt 0:41:16]} 8. Nxe5 {[%emt 0:09:48]} Ndxe5 {[%emt 0:09:25]} 9. dxe5 {[%emt 0:00:08]} Nxe5 {[%emt 0:01:09]} 10. Qh5+ {[%emt 0:02:37]} Nf7 {[%emt 0:00:05]} 11. Bxh7 {[%emt 0:06:20]} Qf6 {[%emt 0:11:09]} 12. O-O {[%emt 0:22:54]} Bd7 {[%emt 0:00:36]} 13. Nf3 {[%emt 0:02:07]} O-O-O {[%emt 0:02:08]} 14. Qg6 {[%emt 0:03:33]} e5 {[%emt 0:07:50]} 15. Qxf6 {[%emt 0:12:04]} gxf6 {[%emt 0:00:01]} 16. Bg6 {[%emt 0:00:15]} Nd6 {[%emt 0:00:09]} 17. c3 {[%emt 0:01:14]} e4 {[%emt 0:01:35]} 18. Nd4 {[%emt 0:01:00]} Be7 {[%emt 0:00:49]} 19. f4 {[%emt 0:02:33]} f5 {[%emt 0:01:11]} 20. g4 {[%emt 0:03:49]} Rdg8 {[%emt 0:00:12]} 0-1

[Event "121st Swiss Championship 2022"]
[Site "Samnaun-Compatsch"]
[Date "2022.07.10"]
[Round "9.2"]
[White "Pogan, Nikolas"]
[Black "Gaehwiler, Gabriel"]
[Result "1-0"]
[ECO "A50"]
[WhiteElo "2226"]
[BlackElo "2420"]
[Annotator "RC"]
[PlyCount "81"]
[EventDate "2022.06.28"]
[EventType "swiss"]
[EventCountry "SUI"]
[SourceTitle "playchess.com"]
[Source "ChessBase"]
[SourceQuality "1"]
[TimeControl "40/5400+30:1800+30"]

1. Nf3 {[%emt 0:00:02]} Nf6 {[%emt 0:00:44]} 2. g3 {[%emt 0:02:06]} b6 {[%emt 0:03:58]} 3. d4 {[%emt 0:03:00]} Bb7 {[%emt 0:03:23]} 4. Bg2 {[%emt 0:00:09]} g6 {[%emt 0:00:26]} 5. O-O {[%emt 0:00:06]} Bg7 {[%emt 0:00:06]} 6. c4 {[%emt 0:00:02]} O-O {[%emt 0:00:13]} 7. Nc3 {[%emt 0:00:02]} Ne4 {[%emt 0:00:12]} 8. Qd3 {[%emt 0:01:11]} Nxc3 {[%emt 0:06:06]} 9. Qxc3 {[%emt 0:01:28]} c5 {[%emt 0:09:43]} 10. Be3 {[%emt 0:01:52]} d6 {[%emt 0:08:24]} 11. Qd2 {[%emt 0:03:43]} e5 {[%emt 0:03:23]} 12. dxe5 {[%emt 0:13:29]} dxe5 {[%emt 0:01:53]} 13. Rad1 {[%emt 0:21:33]} Nc6 {[%emt 0:13:34]} 14. Qxd8 {[%emt 0:02:53]} Raxd8 {[%emt 0:02:59]} 15. Ng5 {[%emt 0:00:04]} h6 {[%emt 0:11:07]} 16. Ne4 {[%emt 0:12:48]} f5 {[%emt 0:02:18]} 17. Nd6 {[%emt 0:00:32]} Ba8 {[%emt 0:00:07]} 18. Bd5+ {[%emt 0:20:40]} Kh7 {[%emt 0:01:35]} 19. Nb5 {[%emt 0:00:16]} f4 {[%emt 0:12:12]} 20. Bxc6 {[%emt 0:02:05]} Bxc6 {[%emt 0:01:29]} 21. Rxd8 {[%emt 0:06:46]} Rxd8 {[%emt 0:00:51]} 22. Nxa7 {[%emt 0:01:49]} Bb7 {[%emt 0:08:28]} 23. Bc1 {[%emt 0:00:34]} f3 {[%emt 0:02:10]} 24. exf3 {[%emt 0:00:13]} Bxf3 {[%emt 0:00:05]} 25. Re1 {[%emt 0:00:40]} Ra8 {[%emt 0:00:36]} 26. Nb5 {[%emt 0:00:33]} Rxa2 {[%emt 0:00:07]} 27. Nc3 {[%emt 0:00:26]} Ra8 {[%emt 0:01:48]} 28. h3 {[%emt 0:03:14]} e4 {[%emt 0:01:45]} 29. Nxe4 {[%emt 0:00:50]} Bxe4 {[%emt 0:02:14]} 30. Rxe4 {[%emt 0:00:04]} Ra1 {[%emt 0:00:06]} 31. Re1 {[%emt 0:00:40]} Bxb2 {[%emt 0:00:38]} 32. Bd2 {[%emt 0:00:59]} Ra4 {[%emt 0:02:53]} 33. Re7+ {[%emt 0:01:30]} Kg8 {[%emt 0:00:00]} 34. Re6 {[%emt 0:00:00]} Rxc4 35. Rxg6+ {[%emt 0:00:00]} Kf7 36. Rxb6 {[%emt 0:01:24]} Rc2 37. Be3 {[%emt 0:03:02]} Ba3 {[%emt 0:00:14]} 38. Rxh6 {[%emt 0:00:00]} c4 39. Rc6 {[%emt 0:00:40]} c3 {[%emt 0:03:06]} 40. h4 {[%emt 0:00:00]} Ke7 {[%emt 0:00:15]} 41. h5 {[%emt 0:29:03]} 1-0

[Event "121st Swiss Championship 2022"]
[Site "Samnaun-Compatsch"]
[Date "2022.07.10"]
[Round "9.3"]
[White "Pavlovic, Milos"]
[Black "Curien, Nicolas"]
[Result "1-0"]
[ECO "D45"]
[WhiteElo "2461"]
[BlackElo "2198"]
[Annotator "RC"]
[PlyCount "51"]
[EventDate "2022.06.28"]
[EventType "swiss"]
[EventCountry "SUI"]
[SourceTitle "playchess.com"]
[Source "ChessBase"]
[SourceQuality "1"]
[TimeControl "40/5400+30:1800+30"]

1. c4 {[%emt 0:00:12]} c6 {[%emt 0:00:06]} 2. Nf3 {[%emt 0:00:16]} d5 {[%emt 0:00:19]} 3. e3 {[%emt 0:00:40]} Nf6 {[%emt 0:00:57]} 4. Nc3 {[%emt 0:01:32]} e6 {[%emt 0:01:43]} 5. b3 {[%emt 0:03:26]} Nbd7 {[%emt 0:00:37]} 6. Qc2 {[%emt 0:05:13]} Bd6 {[%emt 0:03:00]} 7. Bb2 {[%emt 0:01:12]} O-O {[%emt 0:12:16]} 8. Be2 {[%emt 0:00:18]} a6 {[%emt 0:14:22]} 9. d4 {[%emt 0:00:28]} b5 {[%emt 0:08:35]} 10. O-O {[%emt 0:00:37]} Rb8 {[%emt 0:04:51]} 11. Rfd1 {[%emt 0:28:12]} b4 {[%emt 0:05:41]} 12. Na4 {[%emt 0:00:34]} Ne4 {[%emt 0:01:13]} 13. Ne5 {[%emt 0:15:22]} Qh4 {[%emt 0:09:56]} 14. Bd3 {[%emt 0:02:41]} f5 {[%emt 0:11:33]} 15. f3 {[%emt 0:05:39]} Qh6 {[%emt 0:09:48]} 16. Qe2 {[%emt 0:06:24]} Ndf6 {[%emt 0:07:22]} 17. c5 {[%emt 0:06:15]} Bc7 {[%emt 0:00:34]} 18. fxe4 {[%emt 0:00:45]} dxe4 {[%emt 0:02:13]} 19. Bc4 {[%emt 0:00:27]} Ng4 {[%emt 0:02:52]} 20. g3 {[%emt 0:07:19]} Qxe3+ {[%emt 0:00:28]} 21. Qxe3 {[%emt 0:00:41]} Nxe3 {[%emt 0:00:02]} 22. Nxc6 {[%emt 0:00:11]} Nxd1 {[%emt 0:00:30]} 23. Rxd1 {[%emt 0:00:06]} Ra8 {[%emt 0:01:59]} 24. Nb6 {[%emt 0:09:23]} Bxb6 {[%emt 0:00:09]} 25. cxb6 {[%emt 0:00:03]} Kf7 {[%emt 0:00:44]} 26. d5 {[%emt 0:00:19]} 1-0

[Event "121st Swiss Championship 2022"]
[Site "Samnaun-Compatsch"]
[Date "2022.07.10"]
[Round "9.4"]
[White "Schlegel, Igor"]
[Black "Fecker, Noah"]
[Result "0-1"]
[ECO "B48"]
[WhiteElo "2194"]
[BlackElo "2387"]
[Annotator "RC"]
[PlyCount "54"]
[EventDate "2022.06.28"]
[EventType "swiss"]
[EventCountry "SUI"]
[SourceTitle "playchess.com"]
[Source "ChessBase"]
[SourceQuality "1"]
[TimeControl "40/5400+30:1800+30"]

1. e4 {[%emt 0:00:03]} c5 {[%emt 0:00:02]} 2. Nf3 {[%emt 0:00:04]} e6 {[%emt 0:00:02]} 3. d4 {[%emt 0:00:06]} cxd4 {[%emt 0:00:03]} 4. Nxd4 {[%emt 0:00:04]} Nc6 {[%emt 0:00:03]} 5. Nc3 {[%emt 0:00:06]} Qc7 {[%emt 0:00:04]} 6. Be3 {[%emt 0:00:03]} a6 {[%emt 0:00:02]} 7. Qf3 {[%emt 0:00:05]} Nf6 {[%emt 0:00:21]} 8. O-O-O {[%emt 0:00:20]} Ne5 {[%emt 0:00:12]} 9. Qg3 {[%emt 0:00:28]} b5 {[%emt 0:00:24]} 10. f4 {[%emt 0:14:17]} Neg4 {[%emt 0:00:57]} 11. e5 {[%emt 0:12:30]} Nxe3 {[%emt 0:08:40]} 12. Qxe3 {[%emt 0:00:05]} b4 {[%emt 0:02:28]} 13. Na4 {[%emt 0:20:40]} Nd5 {[%emt 0:02:39]} 14. Qg3 {[%emt 0:00:05]} g6 {[%emt 0:07:52]} 15. Kb1 {[%emt 0:02:00]} Bh6 {[%emt 0:04:47]} 16. Ne2 {[%emt 0:01:30]} Bb7 {[%emt 0:08:22]} 17. Qh4 {[%emt 0:01:04]} Rc8 {[%emt 0:03:47]} 18. c4 {[%emt 0:00:32]} Bg7 {[%emt 0:02:18]} 19. Qf2 {[%emt 0:08:35]} Qxc4 {[%emt 0:07:37]} 20. Nd4 {[%emt 0:02:51]} Qc7 {[%emt 0:00:17]} 21. Nb3 {[%emt 0:00:46]} O-O {[%emt 0:16:32]} 22. Rc1 {[%emt 0:04:54]} Qb8 {[%emt 0:03:10]} 23. Nac5 {[%emt 0:00:34]} Qa7 {[%emt 0:01:10]} 24. Qd2 {[%emt 0:04:18]} Bh6 {[%emt 0:04:17]} 25. Rc4 {[%emt 0:07:58]} Bc6 {[%emt 0:02:16]} 26. Rd4 {[%emt 0:03:01]} a5 {[%emt 0:02:23]} 27. Na6 {[%emt 0:00:16]} Bb7 {[%emt 0:00:36]} 0-1

[Event "121st Swiss Championship 2022"]
[Site "Samnaun-Compatsch"]
[Date "2022.07.10"]
[Round "9.5"]
[White "Labelle, Ambroise"]
[Black "Georgescu, Lena"]
[Result "1/2-1/2"]
[ECO "B53"]
[WhiteElo "2045"]
[BlackElo "2279"]
[Annotator "RC"]
[PlyCount "108"]
[EventDate "2022.06.28"]
[EventType "swiss"]
[EventCountry "SUI"]
[SourceTitle "playchess.com"]
[Source "ChessBase"]
[SourceQuality "1"]
[TimeControl "40/5400+30:1800+30"]

1. e4 {[%emt 0:00:02]} c5 {[%emt 0:00:03]} 2. Nf3 {[%emt 0:00:08]} d6 {[%emt 0:00:03]} 3. d4 {[%emt 0:00:40]} cxd4 {[%emt 0:00:04]} 4. Qxd4 {[%emt 0:00:17]} Nc6 {[%emt 0:00:04]} 5. Bb5 {[%emt 0:00:05]} Bd7 {[%emt 0:00:04]} 6. Qd3 {[%emt 0:01:12]} g6 {[%emt 0:08:36]} 7. Nc3 {[%emt 0:06:14]} Bg7 {[%emt 0:00:27]} 8. Bg5 {[%emt 0:00:54]} Nf6 {[%emt 0:05:24]} 9. h3 {[%emt 0:02:00]} Rc8 {[%emt 0:03:19]} 10. O-O {[%emt 0:01:10]} O-O {[%emt 0:06:38]} 11. Rad1 {[%emt 0:02:01]} h6 {[%emt 0:13:57]} 12. Bxc6 {[%emt 0:11:57]} Bxc6 {[%emt 0:01:03]} 13. Be3 {[%emt 0:00:15]} b5 {[%emt 0:09:07]} 14. Bd4 {[%emt 0:16:48]} b4 {[%emt 0:04:40]} 15. Nd5 {[%emt 0:00:13]} Bxd5 {[%emt 0:00:25]} 16. exd5 {[%emt 0:00:29]} Qa5 {[%emt 0:00:10]} 17. Rfe1 {[%emt 0:03:05]} Rc7 {[%emt 0:01:36]} 18. Qb3 {[%emt 0:00:59]} Qb5 {[%emt 0:06:31]} 19. a4 {[%emt 0:07:28]} Qb7 {[%emt 0:00:39]} 20. c4 {[%emt 0:01:36]} bxc3 {[%emt 0:02:40]} 21. Qxb7 {[%emt 0:00:40]} Rxb7 {[%emt 0:00:07]} 22. Bxc3 {[%emt 0:00:30]} Rc8 {[%emt 0:00:38]} 23. Bd4 {[%emt 0:07:56]} a6 {[%emt 0:14:46]} 24. Rd3 {[%emt 0:06:53]} Kf8 {[%emt 0:01:07]} 25. Kf1 {[%emt 0:02:32]} Nh5 {[%emt 0:04:33]} 26. Bxg7+ {[%emt 0:00:48]} Kxg7 {[%emt 0:02:41]} 27. b3 {[%emt 0:03:07]} Nf6 {[%emt 0:00:45]} 28. Red1 {[%emt 0:02:22]} Kf8 {[%emt 0:04:26]} 29. Ke2 {[%emt 0:02:09]} Rc2+ {[%emt 0:00:19]} 30. R1d2 {[%emt 0:04:00]} Rbc7 {[%emt 0:01:20]} 31. b4 {[%emt 0:01:35]} Ke8 {[%emt 0:01:31]} 32. Rd4 {[%emt 0:01:42]} Kd7 {[%emt 0:01:09]} 33. Rxc2 {[%emt 0:03:37]} Rxc2+ {[%emt 0:00:03]} 34. Nd2 {[%emt 0:00:06]} Ra2 {[%emt 0:02:27]} 35. a5 {[%emt 0:01:26]} h5 {[%emt 0:04:23]} 36. Kd3 {[%emt 0:00:51]} Ra1 {[%emt 0:00:40]} 37. g4 {[%emt 0:02:02]} Rh1 {[%emt 0:00:58]} 38. Kc4 {[%emt 0:02:38]} Rc1+ {[%emt 0:00:37]} 39. Kd3 {[%emt 0:01:39]} Rh1 {[%emt 0:00:03]} 40. Kc4 {[%emt 0:00:16]} Rc1+ {[%emt 0:00:17]} 41. Kd3 {[%emt 0:31:00]} Rg1 {[%emt 0:07:18]} 42. Nf3 {[%emt 0:00:00]} Rd1+ {[%emt 0:02:44]} 43. Nd2 {[%emt 0:00:00]} Kc7 {[%emt 0:05:14]} 44. g5 {[%emt 0:00:00]} Ne8 {[%emt 0:05:41]} 45. Rc4+ {[%emt 0:00:00]} Kd7 {[%emt 0:00:15]} 46. h4 {[%emt 0:00:00]} Nc7 {[%emt 0:01:01]} 47. Rd4 {[%emt 0:00:00]} Rh1 {[%emt 0:00:55]} 48. Nc4 {[%emt 0:00:00]} Rh3+ {[%emt 0:00:56]} 49. Ke2 {[%emt 0:00:00]} Rb3 {[%emt 0:04:25]} 50. Nb6+ {[%emt 0:00:00]} Kd8 {[%emt 0:00:20]} 51. Rf4 {[%emt 0:00:00]} Ke8 {[%emt 0:01:29]} 52. Rc4 {[%emt 0:00:00]} Kd8 {[%emt 0:00:13]} 53. Rf4 {[%emt 0:00:00]} Ke8 {[%emt 0:00:06]} 54. Rc4 {[%emt 0:00:00]} Kd8 {[%emt 0:00:05]} 1/2-1/2